Cogmind - Beta 17.1 @@@ ROGUE MODE // 2026.09.02 @ 12:28:03 Player: Somberlain Result: Destroyed by DI-JG2(R) with Subdweller Machine Gun Performance ------------- Evolutions (0) 0 Regions Visited (2) 400 Robots Destroyed (14) 70 Value Destroyed (362) 362 Prototype IDs (0) 0 Alien Tech Used (0) 0 Bonus (0) 0 TOTAL SCORE: 832 Bonus ------- None Cogmind --------- Core Integrity 0/250 Matter 274/300 Energy 100/100 System Corruption 0% Temperature Cool (0) Movement Walking (120) Location -10/Subcaves Parts ------- > --- POWER (1) -------- (None) > --- PROPULSION (2) --- Aluminum Leg > --- UTILITY (2) ------ Small Storage Unit > --- WEAPON (2) ------- Light Assault Rifle > --- INVENTORY (8) ---- Subdweller Power Source Subdweller Power Source Aluminum Leg Subdweller Monowheel Subdweller Optics Datajack Peak State ------------ > --- POWER ------------ Ion Engine > --- PROPULSION ------- Aluminum Leg Aluminum Leg > --- UTILITY ---------- Heat Sink Small Storage Unit > --- WEAPON ----------- Riot Gun Light Assault Rifle > --- INVENTORY -------- Subdweller Power Source Subdweller Power Source Aluminum Leg Subdweller Monowheel Subdweller Optics Light Assault Rifle Datajack [Rating: 10] Favorites ----------- Power Ion Engine Engine Ion Engine Propulsion Aluminum Leg Leg Aluminum Leg Utility Small Storage Unit Device Heat Sink Storage Small Storage Unit Weapon Light Assault Rifle Energy Gun Riot Gun Ballistic Gun Light Assault Rifle Build | -11 -10 -10 ------- Run | Yrd Mat Sub Slots Evolved . | . . . Power . | . . . Propulsion . | . . . Utility . | . . . Weapon . | . . . Parts Attached 13 | 6 3 4 Power 1 | 1 . . Engine 1 | 1 . . Core . | . . . Reactor . | . . . Propulsion 4 | 2 2 . Treads . | . . . Leg 4 | 2 2 . Wheel . | . . . Hover . | . . . Flight . | . . . Utility 2 | 1 . 1 Device 1 | . . 1 Storage 1 | 1 . . Processor . | . . . Hackware . | . . . Protection . | . . . Artifact . | . . . Weapon 6 | 2 1 3 Energy Gun 1 | . . 1 Energy Cannon . | . . . Ballistic Gun 5 | 2 1 2 Ballistic Cannon . | . . . Launcher . | . . . Special Weapon . | . . . Impact Weapon . | . . . Slashing Weapon . | . . . Piercing Weapon . | . . . Special Melee Weapon . | . . . Unidentified Prototypes . | . . . Parts Lost 7 | . . 7 Power 1 | . . 1 Propulsion 2 | . . 2 Utility 1 | . . 1 Weapon 3 | . . 3 Highest Loss Streak 5 | . . 5 To Critical Strikes . | . . . Average Backups 4 | . 2 5 Power . | . . . Propulsion 1 | . . 1 Utility . | . . . Weapon 1 | . 1 1 Tool/Special . | . . . Unused Backups 5 | . . 5 Power 2 | . . 2 Propulsion 1 | . . 1 Utility 1 | . . 1 Weapon . | . . . Tool/Special 1 | . . 1 Average Slot Usage (%) 91 | . 85 93 Engine 13 | . 14 13 Leg 27 | . 28 26 Device 7 | . . 10 Storage 14 | . 14 14 Energy Gun 2 | . . 3 Ballistic Gun 25 | . 28 24 Peak Build Rating 10 | 6 6 10 Average Rating 6 | 4 6 7 On Entrance 4 | . 6 6 Avg Prop Armor Cover (%) . | . . . Naked Turns . | . . . Heaviest Build 15 | 13 13 15 Greatest Support 20 | 20 20 20 Greatest Overweight (x) . | . . . Average Overweight (x) . | . . . Largest Inventory Capacity 8 | 8 8 8 Average Capacity 7 | 7 8 8 Most Carried 7 | . 5 7 Average Carried 4 | . 2 5 Final Capacity 8 | 8 8 8 Final Carried 6 | . 5 6 Class Distribution -------------------- 68% | Mutant 31% | Scavenger-Mutant Dominant Class ---------------- Mutant | -10/Materials Scavenger-Mutant | -10/Subcaves Resources | -11 -10 -10 ----------- Run | Yrd Mat Sub Matter Collected 467 | 260 120 87 Remotely . | . . . Salvage Created 440 | . 176 264 Parts 33 | . 17 16 Haulers Intercepted . | . . . Recyclers Shooed . | . . . Parts Field Recycled . | . . . Retrieved Matter . | . . . Parts Self-Destructed 6 | . . 6 Prevented . | . . . Parts Restored . | . . . Kills | -11 -10 -10 ------- Run | Yrd Mat Sub Combat Hostiles Destroyed 13 | . 7 6 Guns 13 | . 7 6 Classes Destroyed 5 | . 3 2 Builder 1 | . 1 . Swarmer 5 | . 5 . Grunt 3 | . 2 1 Sentry 1 | . . 1 Subdweller 4 | . . 4 Best Kill Streak 6 | . 6 2 Combat Bots Only 5 | . 5 2 Max Kills in Single Turn 1 | . 1 1 Gunslinging . | . . . Exploded . | . . . Melee . | . . . Uniques/NPCs Destroyed . | . . . Combat | -11 -10 -10 -------- Run | Yrd Mat Sub Hostile Shots Fired 122 | . 58 64 Missed 39 | . 11 28 Hits 83 | . 47 36 Projectile 83 | . 47 36 Critical Strikes 1 | . . 1 Damage Taken 1105 | . 401 704 Core 266 | . 79 187 Absorbed by Shields . | . . . Core Remaining (%) 100 | 100 . . Volleys Fired 68 | . 25 43 Largest 2 | . 2 2 Hottest 70 | . 40 70 Shots Fired 131 | . 50 81 Gun 131 | . 50 81 Cannon . | . . . Launcher . | . . . Special . | . . . Kinetic 124 | . 50 74 Thermal . | . . . Explosive . | . . . Electromagnetic 7 | . . 7 Robot Hit Streak 17 | . 5 17 Robot Miss Streak 6 | . 6 2 Penetration Max . | . . . Secondary Targets 3 | . . 3 Max Gunslinging Chain 1 | . . 1 Shots Hit Robots 91 | . 25 66 Core Hits 29 | . 10 19 Critical Kills 1 | . . 1 Critical Parts Destroyed . | . . . Critical Strikes 2 | . . 2 Destroy 2 | . . 2 Melee Attacks . | . . . Impact . | . . . Slashing . | . . . Piercing . | . . . Sneak Attacks . | . . . Combat Hostiles . | . . . Follow-up Attacks . | . . . Damage Inflicted 825 | . 299 526 Guns 825 | . 299 526 Cannons . | . . . Explosions . | . . . Melee . | . . . Ramming . | . . . Kinetic 753 | . 299 454 Thermal . | . . . Explosive . | . . . Electromagnetic 72 | . . 72 Impact . | . . . Slashing . | . . . Piercing . | . . . Highest Corruption . | . . . Average Corruption . | . . . Corruption Purged . | . . . Corruption Blocked . | . . . Overload Shots . | . . . Overflow Damage . | . . . Projectiles . | . . . Explosions . | . . . Melee . | . . . Knockbacks . | . . . Impact . | . . . Kinetic . | . . . Secondary . | . . . Self-Inflicted Damage . | . . . Shots . | . . . Rammed . | . . . Targets Rammed . | . . . Kicked . | . . . Crushed . | . . . Highest Temperature 12 | . 12 7 Average Temperature 6 | . 6 7 Received Heat Transfer 195 | . 48 147 Siege Activations . | . . . Martial Activations . | . . . Shielding Activations . | . . . Robots Disrupted . | . . . Combat Hostiles . | . . . Robots Corrupted . | . . . Combat Hostiles . | . . . Parts Fried 1 | . . 1 Impact Corruptions . | . . . Robots Melted . | . . . Combat Hostiles . | . . . Parts Melted . | . . . Heat Transferred . | . . . Parts Sabotaged . | . . . Parts Stolen . | . . . Parts Stripped . | . . . Power Chain Reactions . | . . . Alert | -11 -10 -10 ------- Run | Yrd Mat Sub Maximum Alert Level . | . . . Low Security (%) 100 | 100 100 . Level 1 . | . . . Level 2 . | . . . Level 3 . | . . . Level 4 . | . . . Level 5 . | . . . High Security . | . . . Max Security . | . . . Peak Influence 115 | . 115 . Initial . | . . . Average 50 | . 61 . Influence Increases 205 | . 165 40 Destroy 0b10 Robot/C 180 | . 140 40 Destroy 0b10 Robot/NC 5 | . 5 . Destroy Leader 20 | . 20 . Influence Decreases 205 | . 110 95 Entered New Map 27 | . . 27 Time Decay 178 | . 110 68 Squads Dispatched . | . . . Investigation . | . . . Extermination . | . . . Reinforcement . | . . . Assault . | . . . Garrison . | . . . Intercept . | . . . Searches Triggered . | . . . Construction Impeded . | . . . Haulers Reinforced . | . . . Active Scanning Responses . | . . . Cargo Convoy Interrupts . | . . . Stealth | -11 -10 -10 --------- Run | Yrd Mat Sub Distress Signals . | . . . Communications Jammed . | . . . Distress Signals . | . . . Times Spotted 18 | . 10 8 Peak Tracking Total 4 | . 4 3 Tactical Retreats . | . . . Traps | -11 -10 -10 ------- Run | Yrd Mat Sub Traps Triggered . | . . . Indirectly . | . . . Trap Hack Attempts . | . . . Triggered . | . . . Disarmed . | . . . Reprogrammed . | . . . Reused . | . . . Traps Extracted . | . . . Installed . | . . . Triggered . | . . . Machines | -11 -10 -10 ---------- Run | Yrd Mat Sub Machines Disabled . | . . . Max in Single Turn . | . . . Machines Repaired . | . . . Machines Dismantled . | . . . Machines Sabotaged . | . . . Overloaded Fab Kills . | . . . Hacking | -11 -10 -10 --------- Run | Yrd Mat Sub Machines Accessed 2 | . 1 1 Terminals . | . . . Fabricators . | . . . Repair Stations . | . . . Recycling Units 1 | . 1 . Scanalyzers . | . . . Garrison Access . | . . . Total Hacks 2 | . 1 1 Successful 1 | . . 1 Failed 1 | . 1 . Catastrophic 1 | . 1 . Database Lockouts . | . . . Manual 1 | . 1 . Terminals . | . . . Fabricators . | . . . Repair Stations . | . . . Recycling Units 1 | . 1 . Scanalyzers . | . . . Garrison Access . | . . . Terminal Hacks 1 | . . 1 Record 1 | . . 1 Fabricator Hacks . | . . . Repair Station Hacks . | . . . Recycling Unit Hacks . | . . . Scanalyzer . | . . . Garrison Access Hacks . | . . . Unauthorized Hacks . | . . . Terminals . | . . . Fabricators . | . . . Repair Stations . | . . . Recycling Units . | . . . Scanalyzers . | . . . Garrison Access . | . . . Data Cores Recovered . | . . . Used . | . . . Hacking Detections 1 | . 1 . Full Trace Events . | . . . Feedback Events . | . . . Feedback Blocked . | . . . Robot Schematics Acquired . | . . . Robots Built . | . . . Authchips . | . . . Time . | . . . Total Robot Build Rating . | . . . Part Schematics Acquired . | . . . Parts Built . | . . . Authchips . | . . . Time . | . . . Total Part Build Rating . | . . . Part Studies Acquired . | . . . Parts Repaired . | . . . Time . | . . . Parts Recycled . | . . . Recycled Matter . | . . . Retrieved Matter . | . . . Retrieved Components . | . . . Parts Scanalyzed . | . . . Part Schematics Acquired . | . . . Parts Damaged . | . . . Bothacking | -11 -10 -10 ------------ Run | Yrd Mat Sub Used RIF Installer . | . . . Robots Hacked . | . . . Non-combat . | . . . Combat . | . . . Robot Hacks Applied . | . . . Relay Couplers Released . | . . . Fabnet Peak Effective % . | . . . Robots Rewired . | . . . Allies Hacked . | . . . Hacks Repelled . | . . . Allies | -11 -10 -10 -------- Run | Yrd Mat Sub Total Allies . | . . . Largest Group . | . . . Highest-Rated Group . | . . . Highest-Rated Ally . | . . . Total Orders . | . . . Ally Attacks . | . . . Total Damage . | . . . Kills . | . . . Allies Corrupted . | . . . Allies Melted . | . . . Intel | -11 -10 -10 ------- Run | Yrd Mat Sub Active Infowar (turns) . | . . . Robot Analysis Total . | . . . Derelict Logs Recovered 1 | . . 1 Drone Launches . | . . . Drone Recoveries . | . . . Exploration | -11 -10 -10 ------------- Run | Yrd Mat Sub Turns Passed 1010 | 64 302 644 Spaces Moved 619 | 49 177 393 Core 4 | 4 . . Treads . | . . . Legs 615 | 45 177 393 Wheels . | . . . Hover . | . . . Flight . | . . . Fastest Speed 50 | 50 120 120 Average Speed 119 | 114 120 120 Slowest Speed 120 | 120 120 120 Overloaded Moves . | . . . Propulsion Burnouts . | . . . Robots Hopped . | . . . Potential Cave-ins . | . . . Cave-ins Triggered . | . . . Exploration Rate (%) 17 | 4 24 24 Regions Visited 2 Branch Regions 1 Pre-discovered Areas . | . . . Known Exits Taken . | . . . Unknown Exits Taken 2 | 1 1 . Scrap Searched . | . . . Spaces Dug . | . . . Terrain Destroyed . | . . . Melee . | . . . Projectile . | . . . AOE . | . . . Terrain Rammed . | . . . Walls Destroyed . | . . . Machines Disabled . | . . . Actions | -11 -10 -10 --------- Run | Yrd Mat Sub Total 771 | 54 220 497 Wait 64 | . 12 52 Move 617 | 48 176 393 Hop . | . . . Pick Up 7 | . 3 4 Fast Attach 7 | 6 . 1 Attach 3 | . . 3 Detach . | . . . Swap 4 | . 3 1 Drop 1 | . 1 . Fire 68 | . 25 43 Melee . | . . . Ram . | . . . Kick . | . . . Crush . | . . . Escape Stasis . | . . . Rewire . | . . . Trap . | . . . Miscellaneous . | . . . Route ------- -11/Scrapyard -10/Materials -10/Subcaves (discovered 1 exit: [*Mat]) History --------- Turn | Location | Event 3 | -11/Scrapyard | Discovered new exit (range 15) 65 | -11/Scrapyard | Entered Materials 308 | -10/Materials | Build established: Mutant 356 | -10/Materials | Discovered new exit (range 10) 367 | -10/Materials | Entered Subcaves 368 | -10/Subcaves | Approached by a straggling Scientist 370 | -10/Subcaves | Learned Materials security intel 589 | -10/Subcaves | Visited Clippyterm 638 | -10/Subcaves | Discovered new exit (range 13) 639 | -10/Subcaves | Core integrity fell below 50% 953 | -10/Subcaves | Ambushed by Subdwellers from Twisted Machinery 1008 | -10/Subcaves | Core integrity fell below 20% 1011 | -10/Subcaves | Destroyed by DI-JG2(R) with Subdweller Machine Gun Last Messages --------------- 00953_ WE-P0C(R) emerges from the Twisted Machinery. OL-Z5T(R) emerges from concealment. 00968_ AY-GCP(R) misfires. 00970_ Aluminum Leg destroyed. 00973_ Sub. Optics fried. 00973_ AY-GCP(R) destroyed. 00973_ Switching to secondary target: WE-P0C(R). 00975_ Riot Gun destroyed. 00977_ Ion Engine destroyed. II-BP9(c): "I think it's somewhere northeast of here" 00989_ Subatomizers dissect the Sub. Monowheel. 01000_ OL-Z5T(R) affixes Scrap Shield Fragment to Scrap Shield. 01001_ Lgt. Assault Rifle destroyed. 01003_ Heat Sink destroyed. 01003_ OL-Z5T(R) suffers critical hit (Destroy). 01003_ OL-Z5T(R) destroyed. Map ----- +----------------------------------------------------+ | ????# ##???????????????????????????????? | | ????# #???????????????????????????????? | | ????# ##??????????????????????????????? | | ??## ##??###????????????????????????? | | ?# #??# ##???????????????????????? | | ## #??# #???????????????????????? | | ##??# #???????????????????????? | | #??## #???????????????????????? | | ## ## #?## #???????????????????????? | | ## ### ### ####????????????????????? | | ### ### ## #????????????????????? | | ### ## ## #????????????????????? | | #??# ## ##### #????????????????????? | | #???# ##### ##### ##????????????????????? | | ????# ##?## ##?????????????????????? | | ???## ### ###??????????????????????? | | ## ??### ## ##????????????????????????? | | ?##??# ## ##?????????????????????????? | | ?????# ##### #??????????????????????????? | | ????# ## ##### #??????##??????????????????? | | ? = ## # # # ##??#### #??????????????????? | | ## # ?# ## #???# #??????????????????? | | ?#?## ?##### ####???# ####???????????????? | | ???# ??????### ##?####### ##="" #?????????? | | ???# ????????## #### ## *%R" ????????? | | ???# ????????## @ !R ??????? | | ??? ?????????# c """" " ##???????? | | ?????????????# """""" #????????? | | ?????????????## """""""" #### #????????? | | ??????????????# """"""" #????? ????????? | | ??????????????### "" """""" ???????????????? | | ????????????????# #### "#### ???????????????????? | | ????????????????###??# ##???????????????????????? | | ?????????????????????# #????????????????????????? | | ????????????????????? ????????????????????????? | | ????????????????????? "???????????????????????? | | ???????????????????? ###??????????????????????? | | ????????????????????#####????????????????????????? | | ?????????????????????????????????????????????????? | | ?????????????????????????????????????????????????? | | ?????????????????????????????????????????????????? | | ?????????????????????????????????????????????????? | | ?????????????????????????????????????????????????? | | ?????????????????????????????????????????????????? | | ?????????????????????????????????????????????????? | | ?????????????????????????????????????????????????? | | ?????????????????????????????????????????????????? | | ?????????????????????????????????????????????????? | | ?????????????????????????????????????????????????? | | ?????????????????????????????????????????????????? | +----------------------------------------------------+ Best States ------------- Heat Dissipation 35 Energy Generation 10 Energy Capacity 250 Matter Stores 300 Matter Capacity 300 Sight Range 16 Terrain Scan Density 10 Evasion (%) 55 Item Schematics ----------------- None Robot Schematics ------------------ None Fabricated ------------ Nothing Repaired ---------- Nothing Studied --------- None Alien Tech Used ----------------- None Achievements -------------- None Challenges ------------ None Game ------ Seed FieldthrustThunderTorch Manual? 0 Play Time 00:08:09 Cumulative 54.1 hours Start 2026.09.02 @ 12:22:49 End 2026.09.02 @ 12:28:03 Sessions 1 Manual Loads 0 Difficulty Rogue Special Mode None Game No. 82 Rogue 82 Adventurer 0 Explorer 0 Win Type - Total 0 Types 0/0/0/0/0/0/0/0/0/0 Lore% 35 Gallery% 35 Achievement% 31 Wizard Run 0 Options --------- Layout 1 ASCII 0 Keyboard 0 Movement Mouse Keybinds 0 Fullscreen 2 Font 24/Smallcaps Map View 50x35 Zoom Use 0% Tactical HUD 1 Map Filters NONE Filters NONE Steam 1 RUN: e4ae1760-65fa-4ed0-b0f2-4d39ac8dd12f